[Event "Early-Titled-Tuesday-Blitz-June-18-2024"]
[Site "Chess.com"]
[Date "2024.06.18"]
[Round "9"]
[White "jk13"]
[Black "the_chess_child"]
[Result "0-1"]
[WhiteElo "2700"]
[BlackElo "2873"]
[TimeControl "180+1"]
[EndTime "9:46:45 PDT"]
[Termination "the_chess_child won by checkmate"]

1. e4 {[%clk 0:02:55.2]} 1... c5 {[%clk 0:02:57.8]} 2. c3 {[%clk 0:02:54.5]}
2... Nf6 {[%clk 0:02:52.4]} 3. e5 {[%clk 0:02:54.9]} 3... Nd5 {[%clk 0:02:52.7]}
4. Bc4 {[%clk 0:02:55.6]} 4... Nb6 {[%clk 0:02:51.7]} 5. Bb3 {[%clk 0:02:56.1]}
5... Nc6 {[%clk 0:02:49.5]} 6. Nf3 {[%clk 0:02:56.7]} 6... c4 {[%clk 0:02:49.4]}
7. Bc2 {[%clk 0:02:56.2]} 7... d5 {[%clk 0:02:49.7]} 8. exd6 {[%clk 0:02:56.1]}
8... Qxd6 {[%clk 0:02:50]} 9. O-O {[%clk 0:02:53.1]} 9... Bg4 {[%clk 0:02:50]}
10. Qe2 {[%clk 0:02:53.3]} 10... O-O-O {[%clk 0:02:48.1]} 11. Na3 {[%clk
0:02:52.7]} 11... Qe6 {[%clk 0:02:30.4]} 12. Qxe6+ {[%clk 0:02:34.2]} 12... Bxe6
{[%clk 0:02:31.3]} 13. Ng5 {[%clk 0:02:26]} 13... Bd5 {[%clk 0:02:30.9]} 14.
Nxh7 {[%clk 0:02:26.6]} 14... Rxh7 {[%clk 0:02:17]} 15. Bxh7 {[%clk 0:02:27.5]}
15... g6 {[%clk 0:02:17.7]} 16. h4 {[%clk 0:02:10.3]} 16... Be4 {[%clk
0:01:01.2]} 17. Re1 {[%clk 0:02:04.1]} 17... Bd3 {[%clk 0:01:00.7]} 18. Bg8
{[%clk 0:01:56.8]} 18... f5 {[%clk 0:00:49.2]} 19. Be6+ {[%clk 0:01:46.1]} 19...
Kc7 {[%clk 0:00:47]} 20. b3 {[%clk 0:01:42.3]} 20... cxb3 {[%clk 0:00:43.7]} 21.
axb3 {[%clk 0:01:40.3]} 21... Bg7 {[%clk 0:00:38.6]} 22. Nc4 {[%clk 0:01:24.7]}
22... Nd5 {[%clk 0:00:35.2]} 23. Ba3 {[%clk 0:00:58.5]} 23... Bf6 {[%clk
0:00:27.5]} 24. g3 {[%clk 0:00:55.1]} 24... b5 {[%clk 0:00:25]} 25. Ne3 {[%clk
0:00:48.8]} 25... Nb6 {[%clk 0:00:22.3]} 26. Bc5 {[%clk 0:00:46.2]} 26... Ne5
{[%clk 0:00:18.9]} 27. Rxa7+ {[%clk 0:00:45]} 27... Kc6 {[%clk 0:00:18.4]} 28.
Bxb6 {[%clk 0:00:35.7]} 28... Nf3+ {[%clk 0:00:17.7]} 29. Kh1 {[%clk 0:00:33.5]}
29... Kxb6 {[%clk 0:00:17.3]} 30. Rea1 {[%clk 0:00:32.8]} 30... b4 {[%clk
0:00:17.7]} 31. Bc4 {[%clk 0:00:22.2]} 31... bxc3 {[%clk 0:00:15.9]} 32. R1a6+
{[%clk 0:00:19.4]} 32... Kc5 {[%clk 0:00:16.1]} 33. dxc3 {[%clk 0:00:18.3]}
33... Bxc3 {[%clk 0:00:11.6]} 34. Rc7+ {[%clk 0:00:16.2]} 34... Kd4 {[%clk
0:00:11.9]} 35. Bxd3 {[%clk 0:00:12]} 35... Kxd3 {[%clk 0:00:12.1]} 36. Re6
{[%clk 0:00:09.9]} 36... Be5 {[%clk 0:00:10.9]} 37. Kg2 {[%clk 0:00:08.6]} 37...
Ne1+ {[%clk 0:00:10]} 38. Kf1 {[%clk 0:00:08.7]} 38... Bxc7 {[%clk 0:00:10.6]}
39. Kxe1 {[%clk 0:00:09.2]} 39... Bd6 {[%clk 0:00:11.2]} 40. Rxg6 {[%clk
0:00:08.9]} 40... Ra8 {[%clk 0:00:11.5]} 41. Nxf5 {[%clk 0:00:08.6]} 41... Ra1#
{[%clk 0:00:11]} 0-1

[Event "Early-Titled-Tuesday-Blitz-June-18-2024"]
[Site "Chess.com"]
[Date "2024.06.18"]
[Round "9"]
[White "DenLaz"]
[Black "temus_galaktionov"]
[Result "1-0"]
[WhiteElo "3084"]
[BlackElo "2854"]
[TimeControl "180+1"]
[EndTime "9:46:47 PDT"]
[Termination "DenLaz won by checkmate"]

1. d4 {[%clk 0:03:00.9]} 1... d5 {[%clk 0:03:00]} 2. c4 {[%clk 0:03:01.2]} 2...
e6 {[%clk 0:03:00.1]} 3. Nf3 {[%clk 0:03:01.3]} 3... Nf6 {[%clk 0:03:00.8]} 4.
g3 {[%clk 0:03:01.9]} 4... Bb4+ {[%clk 0:03:01.3]} 5. Bd2 {[%clk 0:03:01.7]}
5... Be7 {[%clk 0:03:01.8]} 6. Bg2 {[%clk 0:03:02.1]} 6... O-O {[%clk
0:03:02.4]} 7. O-O {[%clk 0:03:01.6]} 7... c6 {[%clk 0:03:03]} 8. Qc2 {[%clk
0:03:01.7]} 8... Nbd7 {[%clk 0:03:03.7]} 9. Bf4 {[%clk 0:03:01.2]} 9... b6
{[%clk 0:03:03.8]} 10. cxd5 {[%clk 0:03:01.4]} 10... cxd5 {[%clk 0:03:03.2]} 11.
Rc1 {[%clk 0:03:02.1]} 11... Ba6 {[%clk 0:02:58.4]} 12. Nc3 {[%clk 0:03:01]}
12... Qc8 {[%clk 0:02:45.9]} 13. Qa4 {[%clk 0:02:36.7]} 13... Qb7 {[%clk
0:02:35.5]} 14. Nb5 {[%clk 0:02:36.7]} 14... Bxb5 {[%clk 0:02:35.6]} 15. Qxb5
{[%clk 0:02:37.6]} 15... Rfc8 {[%clk 0:02:35.4]} 16. Qa4 {[%clk 0:02:05.6]}
16... h6 {[%clk 0:02:30.5]} 17. Ne1 {[%clk 0:02:02.7]} 17... Ne8 {[%clk
0:02:18.5]} 18. Nd3 {[%clk 0:02:00.9]} 18... Bd6 {[%clk 0:02:18.2]} 19. Bd2
{[%clk 0:02:00.1]} 19... a6 {[%clk 0:02:08.5]} 20. e3 {[%clk 0:01:58.4]} 20...
Bf8 {[%clk 0:01:58.4]} 21. Qd1 {[%clk 0:01:51]} 21... Nd6 {[%clk 0:01:57.1]} 22.
Rxc8 {[%clk 0:01:50.5]} 22... Rxc8 {[%clk 0:01:57.9]} 23. Rc1 {[%clk 0:01:51]}
23... Nc4 {[%clk 0:01:47.5]} 24. Be1 {[%clk 0:01:51.2]} 24... Rc6 {[%clk
0:01:25.9]} 25. b3 {[%clk 0:01:48.4]} 25... Nd6 {[%clk 0:01:25]} 26. Bf1 {[%clk
0:01:45.2]} 26... Nb5 {[%clk 0:00:55.4]} 27. a4 {[%clk 0:01:41.2]} 27... Nc7
{[%clk 0:00:51]} 28. Rc2 {[%clk 0:01:33.5]} 28... f6 {[%clk 0:00:48.2]} 29. Qc1
{[%clk 0:01:33.1]} 29... Nb8 {[%clk 0:00:48.8]} 30. Nf4 {[%clk 0:01:25.5]} 30...
Kf7 {[%clk 0:00:43.6]} 31. Bh3 {[%clk 0:01:21.8]} 31... Bd6 {[%clk 0:00:30.6]}
32. Nd3 {[%clk 0:01:20.3]} 32... Rxc2 {[%clk 0:00:29.9]} 33. Qxc2 {[%clk
0:01:21.2]} 33... Qc6 {[%clk 0:00:30.1]} 34. Qd1 {[%clk 0:01:21.7]} 34... a5
{[%clk 0:00:24.9]} 35. Qh5+ {[%clk 0:01:07.4]} 35... Kf8 {[%clk 0:00:24.8]} 36.
Qe2 {[%clk 0:00:51.8]} 36... Nba6 {[%clk 0:00:21.9]} 37. Nf4 {[%clk 0:00:50.2]}
37... Bxf4 {[%clk 0:00:21.1]} 38. exf4 {[%clk 0:00:51.1]} 38... Nb4 {[%clk
0:00:18.4]} 39. f5 {[%clk 0:00:51.2]} 39... exf5 {[%clk 0:00:15.4]} 40. Bxf5
{[%clk 0:00:51.2]} 40... Kf7 {[%clk 0:00:14.9]} 41. Bd2 {[%clk 0:00:40.9]} 41...
g6 {[%clk 0:00:14.1]} 42. Bb1 {[%clk 0:00:37]} 42... h5 {[%clk 0:00:13.8]} 43.
Qe3 {[%clk 0:00:25.2]} 43... Ne6 {[%clk 0:00:12.2]} 44. Qh6 {[%clk 0:00:25.8]}
44... Nf8 {[%clk 0:00:12]} 45. Bxg6+ {[%clk 0:00:24.1]} 45... Nxg6 {[%clk
0:00:10.4]} 46. Qh7+ {[%clk 0:00:24.7]} 46... Ke6 {[%clk 0:00:10.2]} 47. Qxg6
{[%clk 0:00:25.2]} 47... Qc2 {[%clk 0:00:10.6]} 48. Qe8+ {[%clk 0:00:24]} 48...
Kd6 {[%clk 0:00:10.4]} 49. Bf4# {[%clk 0:00:23.8]} 1-0

[Event "Early-Titled-Tuesday-Blitz-June-18-2024"]
[Site "Chess.com"]
[Date "2024.06.18"]
[Round "9"]
[White "FabianoCaruana"]
[Black "nihalsarin"]
[Result "0-1"]
[WhiteElo "3132"]
[BlackElo "3199"]
[TimeControl "180+1"]
[EndTime "9:46:48 PDT"]
[Termination "nihalsarin won by resignation"]

1. d4 {[%clk 0:03:00.9]} 1... Nf6 {[%clk 0:02:59.8]} 2. c4 {[%clk 0:03:01.3]}
2... e6 {[%clk 0:02:58.4]} 3. Nc3 {[%clk 0:03:01.7]} 3... Bb4 {[%clk 0:02:58.3]}
4. e3 {[%clk 0:03:02.1]} 4... O-O {[%clk 0:02:56.7]} 5. a3 {[%clk 0:03:02.4]}
5... Bxc3+ {[%clk 0:02:55.3]} 6. bxc3 {[%clk 0:03:03.3]} 6... c6 {[%clk
0:02:53.4]} 7. Bd3 {[%clk 0:03:00.6]} 7... d5 {[%clk 0:02:53.9]} 8. Ne2 {[%clk
0:03:00.7]} 8... b6 {[%clk 0:02:53.7]} 9. O-O {[%clk 0:02:59.9]} 9... Ba6 {[%clk
0:02:53.5]} 10. cxd5 {[%clk 0:03:00.1]} 10... cxd5 {[%clk 0:02:46.7]} 11. f3
{[%clk 0:02:59.9]} 11... Bxd3 {[%clk 0:02:46.3]} 12. Qxd3 {[%clk 0:03:00.8]}
12... Nc6 {[%clk 0:02:28.8]} 13. e4 {[%clk 0:03:01]} 13... h6 {[%clk 0:02:29.5]}
14. e5 {[%clk 0:02:47.6]} 14... Nd7 {[%clk 0:02:29.8]} 15. Ng3 {[%clk
0:02:44.8]} 15... Rc8 {[%clk 0:02:26.8]} 16. Bd2 {[%clk 0:02:27.3]} 16... f5
{[%clk 0:02:22.4]} 17. exf6 {[%clk 0:02:26.8]} 17... Qxf6 {[%clk 0:02:20.7]} 18.
Rae1 {[%clk 0:02:23.7]} 18... Qf7 {[%clk 0:02:09.5]} 19. f4 {[%clk 0:02:21.2]}
19... Rfe8 {[%clk 0:01:57.1]} 20. f5 {[%clk 0:02:09.5]} 20... e5 {[%clk
0:01:55.7]} 21. f6 {[%clk 0:02:09.9]} 21... e4 {[%clk 0:01:38.2]} 22. Qe3 {[%clk
0:02:01.6]} 22... Nxf6 {[%clk 0:01:37.7]} 23. Nf5 {[%clk 0:02:01.9]} 23... Qg6
{[%clk 0:01:22.9]} 24. Nd6 {[%clk 0:01:51]} 24... Na5 {[%clk 0:01:23.1]} 25. Qh3
{[%clk 0:01:43.9]} 25... Nc4 {[%clk 0:01:12.9]} 26. Nxe8 {[%clk 0:01:31.6]}
26... Rxe8 {[%clk 0:01:13.8]} 27. Bc1 {[%clk 0:01:30.6]} 27... b5 {[%clk
0:00:57.8]} 28. Rf5 {[%clk 0:01:29.7]} 28... Kh7 {[%clk 0:00:56.6]} 29. Rf4
{[%clk 0:01:15.7]} 29... a5 {[%clk 0:00:40.9]} 30. Rf2 {[%clk 0:00:59.1]} 30...
a4 {[%clk 0:00:35.3]} 31. Rff1 {[%clk 0:00:57.6]} 31... e3 {[%clk 0:00:30.5]}
32. Bxe3 {[%clk 0:00:53.1]} 32... Nxa3 {[%clk 0:00:27.5]} 33. Bf4 {[%clk
0:00:31.7]} 33... Rxe1 {[%clk 0:00:26.3]} 34. Rxe1 {[%clk 0:00:32.6]} 34... Ne4
{[%clk 0:00:24.7]} 35. Qd7 {[%clk 0:00:27.3]} 35... Nc2 {[%clk 0:00:21.8]} 36.
Re2 {[%clk 0:00:09.6]} 36... Nxc3 {[%clk 0:00:22.1]} 37. Re8 {[%clk 0:00:10]}
37... Nxd4 {[%clk 0:00:19.9]} 38. Bd2 {[%clk 0:00:03.8]} 38... Nf3+ {[%clk
0:00:18.6]} 39. Kf2 {[%clk 0:00:02.9]} 39... Nxd2 {[%clk 0:00:19.5]} 40. Qd8
{[%clk 0:00:03.1]} 40... Qf6+ {[%clk 0:00:18.2]} 0-1

[Event "Early-Titled-Tuesday-Blitz-June-18-2024"]
[Site "Chess.com"]
[Date "2024.06.18"]
[Round "9"]
[White "SargissyanSargis"]
[Black "Austen48"]
[Result "0-1"]
[WhiteElo "2419"]
[BlackElo "2315"]
[TimeControl "180+1"]
[EndTime "9:46:48 PDT"]
[Termination "Austen48 won by resignation"]

1. e4 {[%clk 0:02:30.1]} 1... e5 {[%clk 0:02:58.9]} 2. Nf3 {[%clk 0:02:28.8]}
2... Nc6 {[%clk 0:02:59.1]} 3. Bb5 {[%clk 0:02:29.3]} 3... a6 {[%clk 0:02:58.5]}
4. Ba4 {[%clk 0:02:29.8]} 4... Nf6 {[%clk 0:02:57.8]} 5. d3 {[%clk 0:02:28.3]}
5... Bc5 {[%clk 0:02:56.1]} 6. Nc3 {[%clk 0:02:26.8]} 6... b5 {[%clk 0:02:51.9]}
7. Bb3 {[%clk 0:02:26.8]} 7... O-O {[%clk 0:02:52.3]} 8. Nd5 {[%clk 0:02:25.5]}
8... h6 {[%clk 0:02:46.1]} 9. c3 {[%clk 0:02:23.1]} 9... d6 {[%clk 0:02:45.2]}
10. Nxf6+ {[%clk 0:02:23]} 10... Qxf6 {[%clk 0:02:44]} 11. Bd5 {[%clk
0:02:23.9]} 11... Bd7 {[%clk 0:02:36.1]} 12. Rg1 {[%clk 0:02:24.3]} 12... Rad8
{[%clk 0:02:27]} 13. g4 {[%clk 0:02:24.5]} 13... Ne7 {[%clk 0:02:15.6]} 14. g5
{[%clk 0:02:24.6]} 14... Qg6 {[%clk 0:01:45]} 15. gxh6 {[%clk 0:02:22.8]} 15...
Bg4 {[%clk 0:01:42.9]} 16. h3 {[%clk 0:02:19.4]} 16... Bxf3 {[%clk 0:01:39.7]}
17. Rxg6 {[%clk 0:02:18.9]} 17... Bxd1 {[%clk 0:01:39.2]} 18. Rxg7+ {[%clk
0:02:17.8]} 18... Kh8 {[%clk 0:01:39.3]} 19. Kxd1 {[%clk 0:02:11.2]} 19... Nxd5
{[%clk 0:01:39]} 20. exd5 {[%clk 0:02:11.9]} 20... Bxf2 {[%clk 0:01:35.1]} 21.
Ke2 {[%clk 0:02:03.4]} 21... Bh4 {[%clk 0:01:33.7]} 22. Be3 {[%clk 0:01:58]}
22... Bf6 {[%clk 0:01:28.7]} 23. Rg4 {[%clk 0:01:48]} 23... Kh7 {[%clk
0:01:26.8]} 24. Rf1 {[%clk 0:01:48.2]} 24... Bh8 {[%clk 0:01:27]} 25. Rf5 {[%clk
0:01:47]} 25... f6 {[%clk 0:01:23.9]} 26. a4 {[%clk 0:01:39.6]} 26... Rd7 {[%clk
0:01:22.9]} 27. axb5 {[%clk 0:01:39.2]} 27... axb5 {[%clk 0:01:23.7]} 28. h4
{[%clk 0:01:33.2]} 28... Rg8 {[%clk 0:01:11.1]} 29. Rb4 {[%clk 0:01:30.3]} 29...
Kg6 {[%clk 0:01:07.4]} 30. Rf1 {[%clk 0:01:29.6]} 30... f5 {[%clk 0:01:05.6]}
31. h5+ {[%clk 0:01:26.1]} 31... Kf6 {[%clk 0:00:57.2]} 32. Rxb5 {[%clk
0:01:20.6]} 32... f4 {[%clk 0:00:57.3]} 33. Bf2 {[%clk 0:01:11.2]} 33... Kf5
{[%clk 0:00:54.4]} 34. Kf3 {[%clk 0:01:11.4]} 34... Bf6 {[%clk 0:00:49.1]} 35.
Rb7 {[%clk 0:01:00.9]} 35... Rh8 {[%clk 0:00:48.4]} 36. c4 {[%clk 0:00:30.9]}
36... Rxh6 {[%clk 0:00:47.1]} 37. Rh1 {[%clk 0:00:31.5]} 37... Rdh7 {[%clk
0:00:41.3]} 38. c5 {[%clk 0:00:29]} 38... Rxh5 {[%clk 0:00:28.1]} 39. Rxh5+
{[%clk 0:00:28.4]} 39... Rxh5 {[%clk 0:00:28.9]} 40. Rxc7 {[%clk 0:00:28.5]}
40... dxc5 {[%clk 0:00:25.5]} 41. d6 {[%clk 0:00:26.5]} 41... Rh3+ {[%clk
0:00:22.8]} 42. Kg2 {[%clk 0:00:26.5]} 42... Rxd3 {[%clk 0:00:22.7]} 43. Bxc5
{[%clk 0:00:21.1]} 43... e4 {[%clk 0:00:21.4]} 44. Kf2 {[%clk 0:00:12.9]} 44...
e3+ {[%clk 0:00:19.8]} 45. Ke2 {[%clk 0:00:13.2]} 45... Rd2+ {[%clk 0:00:19.4]}
46. Ke1 {[%clk 0:00:13.7]} 46... Bh4+ {[%clk 0:00:18.8]} 47. Kf1 {[%clk
0:00:14.1]} 47... e2+ {[%clk 0:00:18.6]} 48. Kg2 {[%clk 0:00:15]} 48... e1=Q+
{[%clk 0:00:18.3]} 0-1

[Event "Early-Titled-Tuesday-Blitz-June-18-2024"]
[Site "Chess.com"]
[Date "2024.06.18"]
[Round "9"]
[White "bescmelasti"]
[Black "Bob_2004"]
[Result "0-1"]
[WhiteElo "2620"]
[BlackElo "2773"]
[TimeControl "180+1"]
[EndTime "9:46:49 PDT"]
[Termination "Bob_2004 won by resignation"]

1. e4 {[%clk 0:02:58]} 1... Nc6 {[%clk 0:02:59.6]} 2. Nf3 {[%clk 0:02:57.7]}
2... d6 {[%clk 0:03:00.1]} 3. d4 {[%clk 0:02:58]} 3... Nf6 {[%clk 0:03:00]} 4.
Nc3 {[%clk 0:02:56.8]} 4... Bg4 {[%clk 0:03:00.1]} 5. Be3 {[%clk 0:02:55.8]}
5... g6 {[%clk 0:03:00.3]} 6. h3 {[%clk 0:02:54.5]} 6... Bxf3 {[%clk 0:03:00.7]}
7. Qxf3 {[%clk 0:02:55.4]} 7... Bg7 {[%clk 0:03:01.3]} 8. O-O-O {[%clk 0:02:53]}
8... e5 {[%clk 0:02:56.5]} 9. dxe5 {[%clk 0:02:42.3]} 9... Nxe5 {[%clk
0:02:57.4]} 10. Qe2 {[%clk 0:02:40.9]} 10... O-O {[%clk 0:02:56]} 11. g4 {[%clk
0:02:38.8]} 11... Re8 {[%clk 0:02:55.8]} 12. g5 {[%clk 0:02:38.3]} 12... Nfd7
{[%clk 0:02:39.5]} 13. f4 {[%clk 0:02:37.9]} 13... Nc6 {[%clk 0:02:39.1]} 14.
Nd5 {[%clk 0:02:32.8]} 14... Rxe4 {[%clk 0:02:33.8]} 15. Bg2 {[%clk 0:02:33.1]}
15... Re8 {[%clk 0:02:27.8]} 16. h4 {[%clk 0:02:20.6]} 16... Ne7 {[%clk
0:02:24.2]} 17. Qd2 {[%clk 0:02:00.8]} 17... Nf5 {[%clk 0:02:13.9]} 18. Bf2
{[%clk 0:01:57.5]} 18... c6 {[%clk 0:02:14.3]} 19. Nc3 {[%clk 0:01:40.7]} 19...
Qa5 {[%clk 0:02:05.6]} 20. h5 {[%clk 0:01:31.8]} 20... Nb6 {[%clk 0:01:52.5]}
21. hxg6 {[%clk 0:01:31.7]} 21... hxg6 {[%clk 0:01:51.8]} 22. Qd3 {[%clk
0:01:22.8]} 22... Na4 {[%clk 0:01:50]} 23. Nxa4 {[%clk 0:01:09.5]} 23... Qxa4
{[%clk 0:01:50.9]} 24. Kb1 {[%clk 0:01:10.1]} 24... Qxf4 {[%clk 0:01:49.9]} 25.
Be1 {[%clk 0:00:56.7]} 25... Qxg5 {[%clk 0:01:31.5]} 26. Bh3 {[%clk 0:00:55.5]}
26... Ne3 {[%clk 0:01:24.4]} 27. Bd2 {[%clk 0:00:51.2]} 27... Qb5 {[%clk
0:01:22.6]} 28. Qxb5 {[%clk 0:00:50.3]} 28... cxb5 {[%clk 0:01:23.5]} 29. Rde1
{[%clk 0:00:37.7]} 29... Nc4 {[%clk 0:01:21.4]} 30. Bc1 {[%clk 0:00:37.6]} 30...
Rxe1 {[%clk 0:01:16.4]} 31. Rxe1 {[%clk 0:00:37.9]} 31... Kf8 {[%clk 0:01:17]}
32. Bg2 {[%clk 0:00:37.8]} 32... Re8 {[%clk 0:01:15.6]} 33. Rxe8+ {[%clk
0:00:33.7]} 33... Kxe8 {[%clk 0:01:16.5]} 34. Bxb7 {[%clk 0:00:32.6]} 34... Kd7
{[%clk 0:01:14.8]} 35. b3 {[%clk 0:00:30.7]} 35... Na5 {[%clk 0:01:07.3]} 36.
Bd5 {[%clk 0:00:30.6]} 36... f5 {[%clk 0:01:07.3]} 37. Bf7 {[%clk 0:00:28.1]}
37... Be5 {[%clk 0:01:05.4]} 38. Bxg6 {[%clk 0:00:27.1]} 38... Ke6 {[%clk
0:01:06]} 39. Be8 {[%clk 0:00:23.2]} 39... b4 {[%clk 0:01:01.4]} 40. Be3 {[%clk
0:00:18.7]} 40... a6 {[%clk 0:00:54.6]} 41. a3 {[%clk 0:00:17.8]} 41... bxa3
{[%clk 0:00:53.7]} 42. Ka2 {[%clk 0:00:17.8]} 42... Bb2 {[%clk 0:00:51.8]} 43.
Bh5 {[%clk 0:00:15.3]} 43... Nb7 {[%clk 0:00:51.3]} 44. Bf3 {[%clk 0:00:13.9]}
44... Nc5 {[%clk 0:00:49.5]} 45. b4 {[%clk 0:00:05.5]} 45... Ne4 {[%clk
0:00:48]} 46. Kb3 {[%clk 0:00:05]} 46... Ke5 {[%clk 0:00:46.6]} 47. Be2 {[%clk
0:00:04.7]} 47... f4 {[%clk 0:00:44.8]} 48. Bg1 {[%clk 0:00:04.4]} 48... f3
{[%clk 0:00:43]} 49. Bxa6 {[%clk 0:00:03.4]} 49... f2 {[%clk 0:00:43.1]} 50.
Bxf2 {[%clk 0:00:04]} 50... Nxf2 {[%clk 0:00:44]} 51. b5 {[%clk 0:00:04]} 51...
Kd5 {[%clk 0:00:43.1]} 52. b6 {[%clk 0:00:04.1]} 52... Kc6 {[%clk 0:00:43.6]}
53. b7 {[%clk 0:00:04.8]} 53... Kc7 {[%clk 0:00:44.2]} 54. Kc4 {[%clk
0:00:03.5]} 54... a2 {[%clk 0:00:43.4]} 0-1

[Event "Early-Titled-Tuesday-Blitz-June-18-2024"]
[Site "Chess.com"]
[Date "2024.06.18"]
[Round "9"]
[White "axvesik"]
[Black "LaPiToB"]
[Result "1-0"]
[WhiteElo "2558"]
[BlackElo "2351"]
[TimeControl "180+1"]
[EndTime "9:46:49 PDT"]
[Termination "axvesik won by resignation"]

1. e4 {[%clk 0:03:00.9]} 1... c6 {[%clk 0:02:59.4]} 2. Nf3 {[%clk 0:02:55.6]}
2... d5 {[%clk 0:02:59.3]} 3. Nc3 {[%clk 0:02:51.2]} 3... dxe4 {[%clk
0:02:59.2]} 4. Nxe4 {[%clk 0:02:51]} 4... Nf6 {[%clk 0:02:59.8]} 5. Qe2 {[%clk
0:02:50.6]} 5... Nxe4 {[%clk 0:02:59.1]} 6. Qxe4 {[%clk 0:02:50.7]} 6... Qa5
{[%clk 0:02:59.8]} 7. Bc4 {[%clk 0:02:48]} 7... Bf5 {[%clk 0:02:59.4]} 8. Qe2
{[%clk 0:02:47.8]} 8... e6 {[%clk 0:02:57.2]} 9. O-O {[%clk 0:02:43]} 9... Nd7
{[%clk 0:02:54.4]} 10. b4 {[%clk 0:02:32.7]} 10... Bxb4 {[%clk 0:02:46.2]} 11.
Bb2 {[%clk 0:02:22.5]} 11... O-O {[%clk 0:02:40.8]} 12. Nd4 {[%clk 0:02:19.4]}
12... Bg6 {[%clk 0:02:36.3]} 13. Nxe6 {[%clk 0:01:54.2]} 13... Rfe8 {[%clk
0:02:21.3]} 14. Qg4 {[%clk 0:01:45]} 14... Ne5 {[%clk 0:01:58.4]} 15. Qd4 {[%clk
0:01:36.8]} 15... fxe6 {[%clk 0:01:53.7]} 16. Rfe1 {[%clk 0:01:24.6]} 16... Rad8
{[%clk 0:01:48.9]} 17. Qxe5 {[%clk 0:01:19.4]} 17... Qxe5 {[%clk 0:01:48.3]} 18.
Rxe5 {[%clk 0:01:20]} 18... Rxd2 {[%clk 0:01:38]} 19. Bxe6+ {[%clk 0:01:15]}
19... Kh8 {[%clk 0:01:36.1]} 20. f4 {[%clk 0:00:45.4]} 20... Rxc2 {[%clk
0:01:33.5]} 21. Bd4 {[%clk 0:00:45]} 21... Rd8 {[%clk 0:01:24.2]} 22. Rd1 {[%clk
0:00:37.2]} 22... c5 {[%clk 0:01:15.2]} 23. f5 {[%clk 0:00:27.4]} 23... Bh5
{[%clk 0:01:11.7]} 24. Bb3 {[%clk 0:00:17.1]} 24... cxd4 {[%clk 0:01:08.4]} 25.
Bxc2 {[%clk 0:00:17]} 25... Bxd1 {[%clk 0:01:02.8]} 26. Bxd1 {[%clk 0:00:17.9]}
26... d3 {[%clk 0:00:54.2]} 27. Rb5 {[%clk 0:00:17.9]} 27... a5 {[%clk
0:00:36.7]} 28. Rxb7 {[%clk 0:00:17.2]} 28... Re8 {[%clk 0:00:36]} 29. Kf2
{[%clk 0:00:16.9]} 29... h6 {[%clk 0:00:34.6]} 30. Rd7 {[%clk 0:00:15.7]} 30...
Rf8 {[%clk 0:00:31.4]} 31. g4 {[%clk 0:00:15.3]} 31... Rc8 {[%clk 0:00:31.1]}
32. Bb3 {[%clk 0:00:15.2]} 32... Bc5+ {[%clk 0:00:28.1]} 33. Kf3 {[%clk
0:00:15.6]} 33... Re8 {[%clk 0:00:27.2]} 34. Rxd3 {[%clk 0:00:15.7]} 34... h5
{[%clk 0:00:24.7]} 35. h3 {[%clk 0:00:14.1]} 35... Kh7 {[%clk 0:00:24.1]} 36.
Bf7 {[%clk 0:00:13.4]} 36... Re5 {[%clk 0:00:20.4]} 37. Bxh5 {[%clk 0:00:13.2]}
37... Kh6 {[%clk 0:00:21.1]} 38. Bg6 {[%clk 0:00:13.5]} 38... Kg5 {[%clk
0:00:21]} 39. Kg3 {[%clk 0:00:12.5]} 39... Re2 {[%clk 0:00:16.4]} 40. h4+ {[%clk
0:00:12.7]} 40... Kf6 {[%clk 0:00:16.7]} 41. Kf3 {[%clk 0:00:10.7]} 41... Rf2+
{[%clk 0:00:15.9]} 42. Ke4 {[%clk 0:00:11.1]} 42... Rg2 {[%clk 0:00:14.9]} 43.
g5+ {[%clk 0:00:11.4]} 43... Ke7 {[%clk 0:00:15.1]} 44. Kd5 {[%clk 0:00:11.3]}
44... Bb4 {[%clk 0:00:14.8]} 45. Kc6 {[%clk 0:00:11.6]} 45... Rb2 {[%clk
0:00:13.8]} 46. Re3+ {[%clk 0:00:11.1]} 1-0